[Event "European Womens-ch 2025"]
[Site "Rhodes"]
[Date "2025.04.05"]
[Round "6.28"]
[White "Khachatryan, Anna"]
[Black "Allahverdiyeva, Ayan"]
[Result "1-0"]
[Annotator "ChessBase"]
[ECO "E32"]
[WhiteElo "2091"]
[BlackElo "2266"]
[PlyCount "52"]
[EventDate "2025.03.29"]
[EventType "swiss"]
[EventCountry "GRE"]
[SourceTitle "playchess.com"]
[Source "ChessBase"]
[SourceQuality "1"]
[TimeControl "40/5400+30:1800+30"]

1. d4 {[%emt 0:00:23]} Nf6 {[%emt 0:00:05]} 2. c4 {[%emt 0:00:11]} e6 {[%emt 0:00:04]} 3. Nc3 {[%emt 0:00:06]} Bb4 {[%emt 0:00:04]} 4. Qc2 {[%emt 0:00:11]} d6 {[%emt 0:00:50]} 5. e4 {[%emt 0:00:51]} c5 {[%emt 0:00:47]} 6. dxc5 {[%emt 0:00:24]} Bxc5 {[%emt 0:01:51]} 7. Nf3 {[%emt 0:00:14]} Ng4 {[%emt 0:05:25]} 8. h3 {[%emt 0:01:11]} Nxf2 {[%emt 0:07:54]} 9. Rh2 {[%emt 0:00:18]} f5 {[%emt 0:04:30]} 10. Bg5 {[%emt 0:14:03]} Qa5 {[%emt 0:11:00]} 11. exf5 {[%emt 0:10:00]} exf5 {[%emt 0:09:06]} 12. Bd2 {[%emt 0:18:48]} Qd8 {[%emt 0:05:31]} 13. b4 {[%emt 0:08:33]} Qe7+ {[%emt 0:05:13]} 14. Be2 {[%emt 0:00:21]} Bb6 {[%emt 0:02:31]} 15. Nd5 {[%emt 0:14:14]} Qe4 {[%emt 0:02:27]} 16. Qc3 {[%emt 0:00:44]} O-O {[%emt 0:03:58]} 17. Nxb6 {[%emt 0:00:31]} Re8 {[%emt 0:00:02]} 18. Kxf2 {[%emt 0:00:25]} Qxe2+ {[%emt 0:05:16]} 19. Kg1 {[%emt 0:00:24]} axb6 {[%emt 0:00:19]} 20. Re1 {[%emt 0:00:07]} Qxe1+ {[%emt 0:00:29]} 21. Bxe1 {[%emt 0:00:53]} Rxa2 {[%emt 0:00:05]} 22. g3 {[%emt 0:00:46]} Ra8 {[%emt 0:00:23]} 23. Qd3 {[%emt 0:06:30]} Nc6 {[%emt 0:01:32]} 24. Re2 {[%emt 0:00:20]} Rxe2 {[%emt 0:00:05]} 25. Qxe2 {[%emt 0:00:04]} Bd7 {[%emt 0:00:26]} 26. Bc3 {[%emt 0:00:54]} h6 {[%emt 0:00:34]} 1-0

[Event "European Womens-ch 2025"]
[Site "Rhodes"]
[Date "2025.04.05"]
[Round "6.29"]
[White "Kulon, Klaudia"]
[Black "Hapala, Elisabeth"]
[Result "1-0"]
[Annotator "RC"]
[ECO "B49"]
[WhiteElo "2401"]
[BlackElo "2092"]
[PlyCount "61"]
[EventDate "2025.03.29"]
[EventType "swiss"]
[EventCountry "GRE"]
[SourceTitle "playchess.com"]
[Source "ChessBase"]
[SourceQuality "1"]
[TimeControl "40/5400+30:1800+30"]

1. e4 {[%emt 0:01:40]} c5 {[%emt 0:00:04]} 2. Nf3 {[%emt 0:00:08]} e6 {[%emt 0:00:05]} 3. d4 cxd4 {[%emt 0:00:05]} 4. Nxd4 {[%emt 0:00:23]} Nc6 {[%emt 0:00:20]} 5. Nc3 {[%emt 0:00:20]} Qc7 {[%emt 0:00:05]} 6. Be2 {[%emt 0:00:14]} Nf6 {[%emt 0:00:37]} 7. Be3 {[%emt 0:07:02]} a6 {[%emt 0:00:13]} 8. f4 {[%emt 0:00:52]} Bb4 {[%emt 0:14:58]} 9. Bf3 {[%emt 0:03:45]} d5 {[%emt 0:02:31]} 10. e5 {[%emt 0:04:26]} Nd7 {[%emt 0:04:48]} 11. O-O {[%emt 0:01:47]} O-O {[%emt 0:01:03]} 12. Nce2 {[%emt 0:01:05]} Nb6 {[%emt 0:06:07]} 13. b3 {[%emt 0:04:06]} Bd7 {[%emt 1:06:04]} 14. a4 {[%emt 0:02:14]} Nc8 {[%emt 0:00:00]} 15. c3 {[%emt 0:04:43]} Bc5 {[%emt 0:00:00]} 16. Kh1 {[%emt 0:01:44]} Nxd4 {[%emt 0:00:00]} 17. cxd4 {[%emt 0:00:22]} Be7 {[%emt 0:00:00]} 18. Rc1 {[%emt 0:05:25]} Qd8 {[%emt 0:00:00]} 19. f5 {[%emt 0:02:16]} b5 {[%emt 0:00:00]} 20. a5 {[%emt 0:06:07]} Qxa5 {[%emt 0:00:00]} 21. Nf4 {[%emt 0:00:37]} Qd8 {[%emt 0:00:00]} 22. f6 {[%emt 0:01:57]} gxf6 {[%emt 0:00:00]} 23. Nh5 {[%emt 0:00:55]} f5 {[%emt 0:00:00]} 24. Bh6 {[%emt 0:00:54]} Bg5 {[%emt 0:00:00]} 25. Bxg5 {[%emt 0:01:35]} Qxg5 {[%emt 0:00:00]} 26. Nf6+ {[%emt 0:00:02]} Kh8 {[%emt 0:00:00]} 27. Nxd7 {[%emt 0:00:05]} Rd8 {[%emt 0:00:00]} 28. Nf6 {[%emt 0:00:08]} Ne7 {[%emt 0:00:00]} 29. Rc7 {[%emt 0:00:15]} Ng8 {[%emt 0:00:23]} 30. Rxf7 {[%emt 0:00:46]} Nxf6 {[%emt 0:00:13]} 31. Rxf6 {[%emt 0:00:08]} 1-0

[Event "European Womens-ch 2025"]
[Site "Rhodes"]
[Date "2025.04.05"]
[Round "6.30"]
[White "Sliwicka, Alicja"]
[Black "Yildiz, Elif Zeren"]
[Result "1/2-1/2"]
[Annotator "ChessBase"]
[ECO "C54"]
[WhiteElo "2342"]
[BlackElo "2160"]
[PlyCount "84"]
[EventDate "2025.03.29"]
[EventType "swiss"]
[EventCountry "GRE"]
[SourceTitle "playchess.com"]
[Source "ChessBase"]
[SourceQuality "1"]
[TimeControl "40/5400+30:1800+30"]

1. e4 {[%emt 0:00:03]} e5 {[%emt 0:00:07]} 2. Nf3 {[%emt 0:00:05]} Nc6 {[%emt 0:00:06]} 3. Bc4 {[%emt 0:00:05]} Bc5 {[%emt 0:00:19]} 4. d3 {[%emt 0:00:15]} Nf6 {[%emt 0:00:11]} 5. c3 {[%emt 0:00:09]} d6 {[%emt 0:00:09]} 6. b4 {[%emt 0:00:19]} Bb6 {[%emt 0:00:08]} 7. a4 {[%emt 0:00:08]} a5 {[%emt 0:01:12]} 8. b5 {[%emt 0:00:09]} Ne7 {[%emt 0:00:12]} 9. O-O {[%emt 0:00:59]} O-O {[%emt 0:02:31]} 10. Nbd2 {[%emt 0:04:51]} Ng6 {[%emt 0:07:24]} 11. Bb3 {[%emt 0:03:31]} c6 {[%emt 0:08:33]} 12. Nc4 {[%emt 0:04:03]} Be6 {[%emt 0:05:34]} 13. Nxb6 {[%emt 0:08:25]} Bxb3 {[%emt 0:03:41]} 14. Qxb3 {[%emt 0:00:05]} Qxb6 {[%emt 0:00:11]} 15. Be3 {[%emt 0:00:27]} Qc7 {[%emt 0:04:31]} 16. h3 {[%emt 0:01:48]} d5 {[%emt 0:07:26]} 17. Nd2 {[%emt 0:04:38]} Qd7 {[%emt 0:05:03]} 18. Rab1 {[%emt 0:10:50]} Nh5 {[%emt 0:09:27]} 19. d4 {[%emt 0:02:52]} Nhf4 {[%emt 0:06:23]} 20. Qd1 {[%emt 0:04:39]} Rfe8 {[%emt 0:04:48]} 21. dxe5 {[%emt 0:05:27]} Rxe5 {[%emt 0:04:05]} 22. Bxf4 {[%emt 0:02:28]} Nxf4 {[%emt 0:00:10]} 23. Qf3 {[%emt 0:00:29]} Ng6 {[%emt 0:04:01]} 24. Qg3 {[%emt 0:03:41]} Ree8 {[%emt 0:02:02]} 25. Rfd1 {[%emt 0:01:09]} Qe6 {[%emt 0:03:38]} 26. exd5 {[%emt 0:02:59]} Qxd5 {[%emt 0:00:12]} 27. Nb3 {[%emt 0:01:42]} Qf5 {[%emt 0:01:58]} 28. Nd4 {[%emt 0:01:26]} Qc5 {[%emt 0:03:37]} 29. Nb3 {[%emt 0:02:05]} Qf5 {[%emt 0:00:06]} 30. b6 {[%emt 0:02:14]} Nf4 {[%emt 0:02:22]} 31. Nd4 {[%emt 0:00:49]} Qf6 {[%emt 0:00:33]} 32. Kh2 {[%emt 0:01:35]} Re5 {[%emt 0:04:00]} 33. Qf3 {[%emt 0:02:46]} Rc5 {[%emt 0:02:19]} 34. Rbc1 {[%emt 0:06:41]} Nd5 {[%emt 0:02:31]} 35. Qxf6 {[%emt 0:04:59]} gxf6 {[%emt 0:00:02]} 36. Nf5 {[%emt 0:02:55]} Nxb6 {[%emt 0:03:05]} 37. g4 {[%emt 0:00:02]} Nxa4 {[%emt 0:03:40]} 38. Rd7 {[%emt 0:00:17]} b5 {[%emt 0:00:48]} 39. Nh6+ {[%emt 0:06:50]} Kg7 {[%emt 0:00:16]} 40. Nf5+ {[%emt 0:00:00]} Kg8 {[%emt 0:00:00]} 41. Nh6+ {[%emt 0:01:37]} Kg7 {[%emt 0:00:19]} 42. Nf5+ {[%emt 0:00:05]} Kg8 {[%emt 0:04:25]} 1/2-1/2

[Event "European Womens-ch 2025"]
[Site "Rhodes"]
[Date "2025.04.05"]
[Round "6.31"]
[White "Zawadzka, Jolanta"]
[Black "Abdinova, Narmin"]
[Result "1/2-1/2"]
[Annotator "ChessBase"]
[ECO "C45"]
[WhiteElo "2326"]
[BlackElo "2165"]
[PlyCount "78"]
[EventDate "2025.03.29"]
[EventType "swiss"]
[EventCountry "GRE"]
[SourceTitle "playchess.com"]
[Source "ChessBase"]
[SourceQuality "1"]
[TimeControl "40/5400+30:1800+30"]

1. e4 {[%emt 0:00:02]} e5 {[%emt 0:01:31]} 2. Nf3 {[%emt 0:00:05]} Nc6 {[%emt 0:00:07]} 3. d4 {[%emt 0:00:03]} exd4 {[%emt 0:00:05]} 4. Nxd4 {[%emt 0:00:03]} Nf6 {[%emt 0:00:09]} 5. Nxc6 {[%emt 0:00:05]} bxc6 {[%emt 0:00:05]} 6. e5 {[%emt 0:00:19]} Qe7 {[%emt 0:00:07]} 7. Qe2 {[%emt 0:00:05]} Nd5 {[%emt 0:00:06]} 8. g3 {[%emt 0:00:06]} g6 {[%emt 0:03:23]} 9. c4 {[%emt 0:00:09]} Ba6 {[%emt 0:00:09]} 10. b3 {[%emt 0:00:11]} Bg7 {[%emt 0:00:14]} 11. Bb2 {[%emt 0:00:29]} O-O {[%emt 0:00:07]} 12. Bg2 {[%emt 0:00:31]} Rae8 {[%emt 0:00:23]} 13. O-O {[%emt 0:00:16]} Bxe5 {[%emt 0:00:15]} 14. Bxe5 {[%emt 0:00:10]} Qxe5 {[%emt 0:00:04]} 15. Qxe5 {[%emt 0:00:07]} Rxe5 {[%emt 0:00:02]} 16. cxd5 {[%emt 0:00:12]} Bxf1 {[%emt 0:00:06]} 17. Kxf1 {[%emt 0:00:05]} cxd5 {[%emt 0:00:04]} 18. Na3 {[%emt 0:00:10]} c6 {[%emt 0:03:54]} 19. Rd1 {[%emt 0:00:10]} Rfe8 {[%emt 0:10:58]} 20. Bf3 {[%emt 0:00:09]} f5 {[%emt 0:06:24]} 21. Nc2 {[%emt 0:04:42]} Kg7 {[%emt 0:09:24]} 22. Rd4 {[%emt 0:01:02]} g5 {[%emt 0:06:31]} 23. Ra4 {[%emt 0:06:35]} g4 {[%emt 0:00:39]} 24. Bd1 {[%emt 0:00:23]} Ra8 {[%emt 0:05:10]} 25. Ne3 {[%emt 0:04:13]} Kg6 {[%emt 0:13:07]} 26. Bc2 {[%emt 0:03:23]} h5 {[%emt 0:00:10]} 27. Ng2 {[%emt 0:03:58]} Kf6 {[%emt 0:06:51]} 28. Rf4 {[%emt 0:07:15]} Kg5 {[%emt 0:02:34]} 29. Nh4 {[%emt 0:08:51]} Rf8 {[%emt 0:00:39]} 30. Ra4 {[%emt 0:00:21]} Re7 {[%emt 0:04:54]} 31. Rxa7 {[%emt 0:01:57]} Rfe8 {[%emt 0:00:28]} 32. Bxf5 {[%emt 0:11:35]} Re1+ {[%emt 0:00:10]} 33. Kg2 {[%emt 0:00:02]} Rd1 {[%emt 0:06:20]} 34. h3 {[%emt 0:08:37]} Ree1 {[%emt 0:01:20]} 35. f4+ {[%emt 0:14:14]} Kf6 {[%emt 0:01:44]} 36. hxg4 {[%emt 0:00:27]} Rg1+ {[%emt 0:11:28]} 37. Kf2 {[%emt 0:00:27]} Rgf1+ {[%emt 0:00:14]} 38. Ke2 {[%emt 0:00:06]} Rfe1+ {[%emt 0:00:17]} 39. Kf3 {[%emt 0:00:41]} Rf1+ {[%emt 0:00:15]} 1/2-1/2

[Event "European Womens-ch 2025"]
[Site "Rhodes"]
[Date "2025.04.05"]
[Round "6.32"]
[White "Radeva, Viktoria"]
[Black "Piddubna, Bozhena"]
[Result "1-0"]
[Annotator "ChessBase"]
[ECO "C55"]
[WhiteElo "2297"]
[BlackElo "2145"]
[PlyCount "95"]
[EventDate "2025.03.29"]
[EventType "swiss"]
[EventCountry "GRE"]
[SourceTitle "playchess.com"]
[Source "ChessBase"]
[SourceQuality "1"]
[TimeControl "40/5400+30:1800+30"]

1. e4 {[%emt 0:00:03]} e5 {[%emt 0:02:09]} 2. Nf3 {[%emt 0:00:13]} Nc6 {[%emt 0:00:08]} 3. Bc4 {[%emt 0:00:03]} Nf6 {[%emt 0:00:30]} 4. d3 {[%emt 0:00:03]} Be7 {[%emt 0:00:40]} 5. O-O {[%emt 0:00:21]} O-O {[%emt 0:00:11]} 6. Re1 {[%emt 0:00:05]} d6 {[%emt 0:00:08]} 7. a4 {[%emt 0:00:08]} Na5 {[%emt 0:00:41]} 8. Ba2 {[%emt 0:00:20]} c5 {[%emt 0:00:26]} 9. c3 {[%emt 0:00:23]} Nc6 {[%emt 0:00:22]} 10. Na3 {[%emt 0:00:35]} Be6 {[%emt 0:00:26]} 11. Bxe6 {[%emt 0:02:05]} fxe6 {[%emt 0:00:03]} 12. Bd2 {[%emt 0:04:29]} Kh8 {[%emt 0:10:24]} 13. Nc2 {[%emt 0:05:39]} Nh5 {[%emt 0:07:40]} 14. d4 {[%emt 0:11:37]} Qe8 {[%emt 0:08:17]} 15. b4 {[%emt 0:22:15]} cxd4 {[%emt 0:07:18]} 16. cxd4 {[%emt 0:00:19]} Bf6 {[%emt 0:00:53]} 17. Be3 {[%emt 0:04:36]} Qg6 {[%emt 0:08:47]} 18. b5 {[%emt 0:05:38]} Na5 {[%emt 0:10:41]} 19. dxe5 {[%emt 0:09:18]} dxe5 {[%emt 0:02:13]} 20. Qd7 {[%emt 0:03:07]} Rfe8 {[%emt 0:22:43]} 21. Qc7 {[%emt 0:08:02]} Bd8 {[%emt 0:05:52]} 22. Qc3 {[%emt 0:02:06]} Nf4 {[%emt 0:00:13]} 23. g3 {[%emt 0:03:10]} Nh3+ {[%emt 0:02:48]} 24. Kg2 {[%emt 0:00:20]} Nf4+ {[%emt 0:01:53]} 25. Kh1 {[%emt 0:05:56]} Nh3 {[%emt 0:00:02]} 26. Nxe5 {[%emt 0:03:29]} Qxe4+ {[%emt 0:00:31]} 27. f3 {[%emt 0:00:03]} Qf5 {[%emt 0:00:28]} 28. Bd4 {[%emt 0:02:29]} Bb6 {[%emt 0:02:51]} 29. Ne3 {[%emt 0:03:54]} Bxd4 {[%emt 0:01:49]} 30. Qxd4 {[%emt 0:00:00]} Qf6 {[%emt 0:00:26]} 31. N3g4 {[%emt 0:00:18]} Qf5 {[%emt 0:00:38]} 32. Nh6 {[%emt 0:00:53]} Nf2+ {[%emt 0:01:31]} 33. Kg1 {[%emt 0:00:12]} Nh3+ {[%emt 0:00:19]} 34. Kf1 {[%emt 0:00:25]} Nb3 {[%emt 0:01:55]} 35. Nef7+ {[%emt 0:00:12]} Qxf7 {[%emt 0:00:05]} 36. Nxf7+ {[%emt 0:00:03]} Kg8 {[%emt 0:00:05]} 37. Nh6+ {[%emt 0:00:18]} gxh6 {[%emt 0:00:47]} 38. Qg4+ {[%emt 0:00:23]} Ng5 {[%emt 0:00:04]} 39. f4 {[%emt 0:00:36]} Rac8 {[%emt 0:02:05]} 40. fxg5 {[%emt 0:00:00]} Rc4 {[%emt 0:00:00]} 41. Qe2 {[%emt 0:02:20]} hxg5 {[%emt 0:02:23]} 42. Kg1 {[%emt 0:00:56]} Rc3 {[%emt 0:02:35]} 43. Qh5 {[%emt 0:02:47]} Rec8 {[%emt 0:00:35]} 44. Qxg5+ {[%emt 0:00:05]} Kh8 {[%emt 0:00:03]} 45. Qf6+ {[%emt 0:00:42]} Kg8 {[%emt 0:00:02]} 46. Qxe6+ {[%emt 0:00:07]} Kh8 {[%emt 0:00:03]} 47. Qf6+ {[%emt 0:00:07]} Kg8 {[%emt 0:00:02]} 48. Re7 {[%emt 0:00:26]} 1-0

[Event "European Womens-ch 2025"]
[Site "Rhodes"]
[Date "2025.04.05"]
[Round "6.33"]
[White "Pavlidou, Ekaterini"]
[Black "Sieber, Fiona"]
[Result "1/2-1/2"]
[Annotator "ChessBase"]
[ECO "E41"]
[WhiteElo "2160"]
[BlackElo "2276"]
[PlyCount "32"]
[EventDate "2025.03.29"]
[EventType "swiss"]
[EventCountry "GRE"]
[SourceTitle "playchess.com"]
[Source "ChessBase"]
[SourceQuality "1"]
[TimeControl "40/5400+30:1800+30"]

1. d4 {[%emt 0:01:16]} Nf6 {[%emt 0:00:13]} 2. c4 {[%emt 0:00:18]} e6 {[%emt 0:00:03]} 3. Nc3 {[%emt 0:00:32]} Bb4 {[%emt 0:00:05]} 4. e3 {[%emt 0:00:21]} c5 {[%emt 0:00:08]} 5. Bd3 {[%emt 0:02:13]} Nc6 {[%emt 0:00:06]} 6. Nge2 {[%emt 0:01:16]} cxd4 {[%emt 0:00:07]} 7. exd4 {[%emt 0:00:30]} d5 {[%emt 0:00:05]} 8. cxd5 {[%emt 0:02:10]} Nxd5 {[%emt 0:00:05]} 9. Bc2 {[%emt 0:01:09]} Bd6 {[%emt 0:13:21]} 10. O-O {[%emt 0:07:32]} Qh4 {[%emt 0:12:12]} 11. g3 {[%emt 0:02:26]} Nxc3 {[%emt 0:04:27]} 12. Nxc3 {[%emt 0:22:30]} Qxd4 {[%emt 0:00:31]} 13. Qf3 {[%emt 0:07:16]} Qf6 {[%emt 0:07:29]} 14. Qd3 {[%emt 0:00:34]} Qd4 {[%emt 0:06:36]} 15. Qf3 {[%emt 0:04:56]} Qf6 {[%emt 0:08:05]} 16. Qd3 {[%emt 0:00:36]} Qd4 {[%emt 0:00:03]} 1/2-1/2

[Event "European Womens-ch 2025"]
[Site "Rhodes"]
[Date "2025.04.05"]
[Round "6.34"]
[White "Schneider, Jana"]
[Black "Zagorac, Lara"]
[Result "1-0"]
[Annotator "ChessBase"]
[ECO "C78"]
[WhiteElo "2251"]
[BlackElo "2106"]
[PlyCount "119"]
[EventDate "2025.03.29"]
[EventType "swiss"]
[EventCountry "GRE"]
[SourceTitle "playchess.com"]
[Source "ChessBase"]
[SourceQuality "1"]
[TimeControl "40/5400+30:1800+30"]

1. e4 {[%emt 0:00:10]} e5 {[%emt 0:00:27]} 2. Nf3 {[%emt 0:00:05]} Nc6 {[%emt 0:00:08]} 3. Bb5 {[%emt 0:00:07]} a6 {[%emt 0:00:07]} 4. Ba4 {[%emt 0:00:06]} Nf6 {[%emt 0:00:09]} 5. O-O {[%emt 0:00:09]} b5 {[%emt 0:00:07]} 6. Bb3 {[%emt 0:00:07]} Bc5 {[%emt 0:00:08]} 7. a4 {[%emt 0:00:14]} Rb8 {[%emt 0:00:10]} 8. axb5 {[%emt 0:00:10]} axb5 {[%emt 0:00:13]} 9. Nxe5 {[%emt 0:00:09]} Nxe5 {[%emt 0:00:09]} 10. d4 {[%emt 0:00:07]} Bxd4 {[%emt 0:00:31]} 11. Qxd4 {[%emt 0:00:19]} d6 {[%emt 0:00:05]} 12. f4 {[%emt 0:00:21]} Nc6 {[%emt 0:00:39]} 13. Qc3 {[%emt 0:01:12]} Ne7 {[%emt 0:00:40]} 14. e5 {[%emt 0:00:42]} Ne4 {[%emt 0:01:01]} 15. Qe1 {[%emt 0:00:19]} Nc5 {[%emt 0:02:45]} 16. Ba2 {[%emt 0:00:25]} O-O {[%emt 0:06:36]} 17. b4 {[%emt 0:02:08]} Na4 {[%emt 0:05:06]} 18. Na3 {[%emt 0:08:37]} c6 {[%emt 0:08:14]} 19. c4 {[%emt 0:10:02]} Be6 {[%emt 0:17:35]} 20. Be3 {[%emt 0:12:14]} dxe5 {[%emt 0:05:12]} 21. fxe5 {[%emt 0:00:57]} Ng6 {[%emt 0:02:27]} 22. cxb5 {[%emt 0:10:48]} Bxa2 {[%emt 0:00:51]} 23. Rxa2 {[%emt 0:01:08]} Qd5 {[%emt 0:11:11]} 24. Qd2 {[%emt 0:02:45]} Qxd2 {[%emt 0:03:25]} 25. Bxd2 {[%emt 0:04:19]} cxb5 {[%emt 0:01:26]} 26. Re1 {[%emt 0:11:17]} Nb6 {[%emt 0:09:21]} 27. Rc2 {[%emt 0:02:03]} Nd7 {[%emt 0:06:02]} 28. e6 {[%emt 0:00:49]} fxe6 {[%emt 0:00:06]} 29. Rxe6 {[%emt 0:00:07]} Nde5 {[%emt 0:01:25]} 30. h3 {[%emt 0:07:16]} Rfd8 {[%emt 0:02:26]} 31. Ra6 {[%emt 0:03:06]} h5 {[%emt 0:06:12]} 32. Ra7 {[%emt 0:05:42]} h4 {[%emt 0:03:19]} 33. Kh2 {[%emt 0:00:32]} Rd7 {[%emt 0:04:50]} 34. Rxd7 {[%emt 0:01:33]} Nxd7 {[%emt 0:00:02]} 35. Rc7 {[%emt 0:00:30]} Nde5 {[%emt 0:01:44]} 36. Bc3 {[%emt 0:00:27]} Ra8 {[%emt 0:01:15]} 37. Nxb5 {[%emt 0:02:55]} Ra2 {[%emt 0:00:16]} 38. Kg1 {[%emt 0:01:03]} Nf7 {[%emt 0:00:22]} 39. Nd6 {[%emt 0:02:00]} Nxd6 {[%emt 0:02:47]} 40. Rxg7+ {[%emt 0:00:00]} Kf8 {[%emt 0:00:00]} 41. Rxg6 {[%emt 0:00:19]} Ne4 {[%emt 0:00:17]} 42. Bd4 {[%emt 0:02:44]} Ng3 {[%emt 0:19:34]} 43. Rg4 {[%emt 0:01:01]} Kf7 {[%emt 0:02:50]} 44. Rxh4 {[%emt 0:00:58]} Ke6 {[%emt 0:01:36]} 45. Rg4 {[%emt 0:01:20]} Nf5 {[%emt 0:00:17]} 46. Kh2 {[%emt 0:01:31]} Kd5 {[%emt 0:00:37]} 47. Bc5 {[%emt 0:00:12]} Nh6 {[%emt 0:00:33]} 48. Rg5+ {[%emt 0:01:32]} Ke4 {[%emt 0:00:12]} 49. h4 {[%emt 0:03:22]} Nf7 {[%emt 0:00:41]} 50. Rg7 {[%emt 0:00:34]} Ne5 {[%emt 0:00:10]} 51. h5 {[%emt 0:00:36]} Kf5 {[%emt 0:00:09]} 52. h6 {[%emt 0:00:41]} Nf3+ {[%emt 0:01:43]} 53. Kg3 {[%emt 0:00:27]} Ne1 {[%emt 0:01:27]} 54. Kh3 {[%emt 0:00:28]} Ra3+ {[%emt 0:00:17]} 55. Kh2 {[%emt 0:00:47]} Ra6 {[%emt 0:00:15]} 56. h7 {[%emt 0:01:38]} Rh6+ {[%emt 0:00:02]} 57. Kg3 {[%emt 0:00:31]} Nd3 {[%emt 0:00:18]} 58. Be3 {[%emt 0:00:41]} Rh1 {[%emt 0:00:07]} 59. b5 {[%emt 0:00:18]} Ne5 {[%emt 0:01:25]} 60. b6 {[%emt 0:00:30]} 1-0

[Event "European Womens-ch 2025"]
[Site "Rhodes"]
[Date "2025.04.05"]
[Round "6.35"]
[White "Rida, Ruqayyah"]
[Black "Sandu, Mihaela"]
[Result "0-1"]
[Annotator "ChessBase"]
[ECO "C54"]
[WhiteElo "2065"]
[BlackElo "2230"]
[PlyCount "162"]
[EventDate "2025.03.29"]
[EventType "swiss"]
[EventCountry "GRE"]
[SourceTitle "playchess.com"]
[Source "ChessBase"]
[SourceQuality "1"]
[TimeControl "40/5400+30:1800+30"]

1. e4 {[%emt 0:00:02]} e5 {[%emt 0:00:31]} 2. Nf3 {[%emt 0:00:19]} Nc6 {[%emt 0:00:03]} 3. Bc4 {[%emt 0:00:26]} Bc5 {[%emt 0:00:04]} 4. d3 {[%emt 0:00:47]} Nf6 {[%emt 0:00:20]} 5. O-O {[%emt 0:00:41]} d6 {[%emt 0:01:22]} 6. c3 {[%emt 0:02:47]} a6 {[%emt 0:00:05]} 7. Bb3 {[%emt 0:01:56]} h6 {[%emt 0:00:38]} 8. Re1 {[%emt 0:03:24]} Ba7 {[%emt 0:00:50]} 9. Be3 {[%emt 0:03:09]} O-O {[%emt 0:02:48]} 10. Nbd2 {[%emt 0:04:53]} Re8 {[%emt 0:03:09]} 11. Bxa7 {[%emt 0:06:54]} Rxa7 {[%emt 0:01:25]} 12. Nc4 {[%emt 0:05:30]} Ra8 {[%emt 0:03:40]} 13. h3 {[%emt 0:04:32]} Bd7 {[%emt 0:17:43]} 14. Ncd2 {[%emt 0:31:16]} Be6 {[%emt 0:08:07]} 15. d4 {[%emt 0:01:38]} Bxb3 {[%emt 0:01:10]} 16. Qxb3 {[%emt 0:02:56]} Rb8 {[%emt 0:01:47]} 17. Rad1 {[%emt 0:00:50]} exd4 {[%emt 0:05:23]} 18. cxd4 {[%emt 0:02:33]} d5 {[%emt 0:00:09]} 19. e5 {[%emt 0:02:49]} Nh7 {[%emt 0:01:02]} 20. Nf1 {[%emt 0:02:23]} Nf8 {[%emt 0:01:04]} 21. Ne3 {[%emt 0:02:25]} Ne7 {[%emt 0:00:09]} 22. Nh4 {[%emt 0:03:00]} Ne6 {[%emt 0:00:40]} 23. Ng4 {[%emt 0:03:40]} Ng6 {[%emt 0:03:43]} 24. Nxg6 {[%emt 0:04:47]} fxg6 {[%emt 0:00:06]} 25. Qg3 {[%emt 0:00:46]} g5 {[%emt 0:02:34]} 26. Re3 {[%emt 0:03:38]} Rf8 {[%emt 0:03:26]} 27. Rf3 {[%emt 0:02:22]} Qe7 {[%emt 0:01:10]} 28. Rxf8+ {[%emt 0:00:31]} Rxf8 {[%emt 0:00:08]} 29. Qd3 {[%emt 0:01:11]} Qf7 {[%emt 0:02:39]} 30. Qe3 {[%emt 0:01:10]} c6 {[%emt 0:00:23]} 31. Rd2 {[%emt 0:00:52]} a5 {[%emt 0:01:19]} 32. Nh2 {[%emt 0:00:56]} Qe7 {[%emt 0:09:44]} 33. Nf1 {[%emt 0:00:20]} Rf4 {[%emt 0:00:41]} 34. Ng3 {[%emt 0:01:04]} Qf7 {[%emt 0:03:27]} 35. f3 {[%emt 0:00:41]} Qg6 {[%emt 0:01:31]} 36. Ne2 {[%emt 0:00:37]} Rf8 {[%emt 0:00:41]} 37. Qb3 {[%emt 0:00:28]} Qf7 {[%emt 0:01:00]} 38. Qc3 {[%emt 0:00:22]} h5 {[%emt 0:03:27]} 39. Ng3 {[%emt 0:00:46]} g4 {[%emt 0:00:46]} 40. hxg4 {[%emt 0:00:00]} hxg4 {[%emt 0:00:00]} 41. fxg4 {[%emt 0:11:08]} Qf4 {[%emt 0:03:47]} 42. Nh5 {[%emt 0:09:03]} Qxg4 {[%emt 0:09:20]} 43. Qh3 {[%emt 0:01:49]} Qxh3 {[%emt 0:02:53]} 44. gxh3 {[%emt 0:00:30]} a4 {[%emt 0:06:44]} 45. Rg2 {[%emt 0:02:11]} Rf3 {[%emt 0:02:48]} 46. Nf6+ {[%emt 0:03:53]} Kf7 {[%emt 0:01:35]} 47. Nh7 {[%emt 0:00:54]} Rxh3 {[%emt 0:05:05]} 48. Ng5+ {[%emt 0:01:02]} Nxg5 {[%emt 0:00:05]} 49. Rxg5 {[%emt 0:00:05]} Rh4 {[%emt 0:00:47]} 50. e6+ {[%emt 0:01:14]} Kxe6 {[%emt 0:05:59]} 51. Rxg7 {[%emt 0:00:11]} b5 {[%emt 0:00:04]} 52. Rg6+ {[%emt 0:00:45]} Kd7 {[%emt 0:00:04]} 53. Kf2 {[%emt 0:01:19]} Rxd4 {[%emt 0:02:01]} 54. Ke3 {[%emt 0:00:15]} Rh4 {[%emt 0:00:09]} 55. Kd3 {[%emt 0:00:46]} Kc7 {[%emt 0:00:57]} 56. Kc3 {[%emt 0:01:02]} Rh3+ {[%emt 0:02:08]} 57. Kc2 {[%emt 0:01:50]} Rh2+ {[%emt 0:00:06]} 58. Kc1 {[%emt 0:00:32]} a3 {[%emt 0:00:24]} 59. bxa3 {[%emt 0:00:17]} Rxa2 {[%emt 0:00:05]} 60. Rg3 {[%emt 0:00:07]} Kb6 {[%emt 0:00:11]} 61. Kb1 {[%emt 0:00:24]} Rh2 {[%emt 0:00:07]} 62. Rd3 {[%emt 0:00:14]} Rh4 {[%emt 0:00:28]} 63. Kb2 {[%emt 0:00:17]} d4 {[%emt 0:00:18]} 64. Kb3 {[%emt 0:01:06]} c5 {[%emt 0:00:07]} 65. Rg3 {[%emt 0:00:23]} Rh2 {[%emt 0:00:50]} 66. a4 {[%emt 0:01:27]} Ka5 {[%emt 0:00:48]} 67. axb5 {[%emt 0:00:32]} Kxb5 {[%emt 0:00:05]} 68. Rg5 {[%emt 0:00:24]} Rh3+ {[%emt 0:00:13]} 69. Kc2 {[%emt 0:00:08]} Kc4 {[%emt 0:00:16]} 70. Kd2 {[%emt 0:00:23]} Rh2+ {[%emt 0:00:06]} 71. Kd1 {[%emt 0:01:06]} Kb4 {[%emt 0:00:05]} 72. Rd5 {[%emt 0:00:18]} Rh4 {[%emt 0:02:04]} 73. Kd2 {[%emt 0:00:36]} c4 {[%emt 0:00:13]} 74. Rd8 {[%emt 0:00:17]} Rh2+ {[%emt 0:00:08]} 75. Kd1 {[%emt 0:00:53]} Kc3 {[%emt 0:00:12]} 76. Ra8 {[%emt 0:00:32]} Rh1+ {[%emt 0:00:32]} 77. Ke2 {[%emt 0:00:05]} d3+ {[%emt 0:00:10]} 78. Ke3 {[%emt 0:00:09]} Re1+ {[%emt 0:00:07]} 79. Kf2 {[%emt 0:00:10]} d2 {[%emt 0:00:11]} 80. Ra3+ {[%emt 0:00:11]} Kb4 {[%emt 0:01:55]} 81. Re3 {[%emt 0:00:30]} Rxe3 {[%emt 0:00:14]} 0-1